fUSD/lending_fUSD_20260409
["ID","MTS","AMOUNT","RATE_DAILY","PERIOD"]
[420096328,1775669475411,-500.0,0.00015964,2]
[420096329,1775669475422,-500.0,0.00015964,2]
[420096330,1775669475433,-500.0,0.00015964,2]
[420096331,1775669475443,-757.0,0.00015964,2]
[420096332,1775669475454,-500.0,0.00015964,2]
[420096333,1775669475464,-500.0,0.00015964,2]
[420096334,1775669475473,-500.0,0.00015964,2]
[420096335,1775669475483,-500.0,0.00015964,2]
[420096336,1775669475492,-500.0,0.00015964,2]
[420096337,1775669475502,-500.0,0.00015964,2]
[420096338,1775669475512,-500.0,0.00015964,2]
[420096339,1775669475522,-500.0,0.00015964,2]
[420096340,1775669475532,-500.0,0.00015964,2]
[420096341,1775669475542,-500.0,0.00015964,2]
[420096342,1775669475553,-500.0,0.00015964,2]
[420096343,1775669475564,-500.0,0.00015964,2]
[420096344,1775669475574,-500.0,0.00015964,2]
[420096345,1775669475583,-500.0,0.00015964,2]
[420096346,1775669475593,-500.0,0.00015964,2]
[420096347,1775669475603,-500.0,0.00015964,2]
[420096348,1775669475612,-500.0,0.00015964,2]
[420096349,1775669475622,-500.0,0.00015964,2]
[420096350,1775669475632,-500.0,0.00015964,2]
[420096351,1775669475642,-500.0,0.00015964,2]
[420096352,1775669475652,-500.0,0.00015964,2]
[420096353,1775669475662,-500.0,0.00015964,2]
[420096354,1775669475672,-500.0,0.00015964,2]
[420096355,1775669475682,-500.0,0.00015964,2]
[420096356,1775669475691,-500.0,0.00015964,2]
[420096357,1775669475701,-500.0,0.00015964,2]
[420096358,1775669475711,-500.0,0.00015964,2]
[420096359,1775669475720,-500.0,0.00015964,2]
[420096360,1775669475731,-500.0,0.00015964,2]
[420096361,1775669475741,-500.0,0.00015964,2]
[420096362,1775669475751,-500.0,0.00015964,2]
[420096363,1775669475760,-500.0,0.00015964,2]
[420096364,1775669475771,-500.0,0.00015964,2]
[420096365,1775669475791,-500.0,0.00015964,2]
[420096366,1775669475804,-500.0,0.00015964,2]
[420096367,1775669475814,-500.0,0.00015964,2]
[420096368,1775669475824,-500.0,0.00015964,2]
[420096369,1775669475835,-500.0,0.00015964,2]
[420096370,1775669475846,-500.0,0.00015964,2]
[420096371,1775669475856,-500.0,0.00015964,2]
[420096372,1775669475866,-500.0,0.00015964,2]
[420096373,1775669475876,-500.0,0.00015964,2]
[420096374,1775669475886,-500.0,0.00015964,2]
[420096375,1775669475896,-500.0,0.00015964,2]
[420096376,1775669475906,-500.0,0.00015964,2]
[420096377,1775669475916,-500.0,0.00015964,2]
[420096378,1775669475926,-500.0,0.00015964,2]
[420096379,1775669475935,-500.0,0.00015964,2]
[420096380,1775669475945,-500.0,0.00015964,2]
[420096381,1775669475956,-500.0,0.00015964,2]
[420096382,1775669475966,-500.0,0.00015964,2]
[420096383,1775669475976,-500.0,0.00015964,2]
[420096384,1775669475986,-500.0,0.00015964,2]
[420096385,1775669475996,-500.0,0.00015964,2]
[420096386,1775669476007,-500.0,0.00015964,2]
[420096387,1775669476017,-500.0,0.00015964,2]
[420096388,1775669476028,-500.0,0.00015964,2]
[420096389,1775669476038,-500.0,0.00015964,2]
[420096390,1775669476049,-500.0,0.00015964,2]
[420096391,1775669476058,-500.0,0.00015964,2]
[420096392,1775669476069,-944.0,0.00015964,2]
[420096393,1775669476079,-500.0,0.00015964,2]
[420096394,1775669476088,-500.0,0.00015964,2]
[420096395,1775669476098,-500.0,0.00015964,2]
[420096396,1775669476108,-500.0,0.00015964,2]
[420096397,1775669476118,-500.0,0.00015964,2]
[420096398,1775669476128,-500.0,0.00015964,2]
[420096399,1775669476138,-500.0,0.00015964,2]
[420096400,1775669476148,-500.0,0.00015964,2]
[420096401,1775669476159,-500.0,0.00015964,2]
[420096402,1775669476169,-500.0,0.00015964,2]
[420096403,1775669476179,-500.0,0.00015964,2]
[420096404,1775669476188,-500.0,0.00015964,2]
[420096405,1775669476198,-500.0,0.00015964,2]
[420096406,1775669476208,-500.0,0.00015964,2]
[420096407,1775669476225,-500.0,0.00015964,2]
[420096408,1775669476243,-500.0,0.00015964,2]
[420096409,1775669476259,-500.0,0.00015964,2]
[420096410,1775669476276,-500.0,0.00015964,2]
[420096411,1775669476289,-500.0,0.00015964,2]
[420096412,1775669476306,-500.0,0.00015964,2]
[420096413,1775669476321,-500.0,0.00015964,2]
[420096414,1775669476336,-500.0,0.00015964,2]
[420096415,1775669476351,-500.0,0.00015964,2]
[420096416,1775669476370,-500.0,0.00015964,2]
[420096417,1775669476387,-500.0,0.00015964,2]
[420096418,1775669476404,-500.0,0.00015964,2]
[420096419,1775669476419,-500.0,0.00015964,2]
[420096420,1775669476432,-500.0,0.00015964,2]
[420096421,1775669476445,-500.0,0.00015964,2]
[420096422,1775669476459,-500.0,0.00015964,2]
[420096423,1775669476470,-762.0,0.00015964,2]
[420096424,1775669476485,-200.0,0.00015964,2]
[420096425,1775669476499,-200.0,0.00015964,2]
[420096426,1775669476514,-200.0,0.00015964,2]
[420096427,1775669476529,-200.0,0.00015964,2]
[420096428,1775669476545,-200.0,0.00015964,2]
[420096429,1775669476560,-200.0,0.00015964,2]
[420096430,1775669476581,-200.0,0.00015964,2]
[420096431,1775669476595,-344.0,0.00015964,2]
[420096432,1775669476607,-167.54354,0.00015987,2]
[420096433,1775669476619,-3000.000001,0.0001599,2]
[420096434,1775669476633,-151.0,0.0001599,2]
[420096435,1775669476649,-151.0,0.0001599,2]
[420096436,1775669476661,-151.0,0.0001599,2]
[420096437,1775669476676,-151.0,0.0001599,2]
[420096438,1775669476692,-151.0,0.0001599,2]
[420096439,1775669476706,-151.0,0.0001599,2]
[420096440,1775669476729,-151.0,0.0001599,2]
[420096441,1775669476742,-151.0,0.0001599,2]
[420096442,1775669476754,-151.0,0.0001599,2]
[420096443,1775669476768,-177.37673,0.0001599,2]
[420096444,1775669476783,-250.0,0.00015996,2]
[420096445,1775669476798,-250.0,0.00015996,2]
[420096446,1775669476813,-250.0,0.00015996,2]
[420096447,1775669476828,-250.0,0.00015996,2]
[420096448,1775669476841,-250.0,0.00015996,2]
[420096449,1775669476859,-250.0,0.00015996,2]
[420096450,1775669476876,-250.0,0.00015996,2]
[420096451,1775669476941,-290.0,0.00015996,2]
[420096452,1775669476959,-167.54354,0.00015996,2]
[420096453,1775669476975,-167.54354,0.00015997,2]
[420096454,1775669476992,-380.09720688,0.00015999,3]
[420096455,1775669477009,-30000.0,0.00015999,2]
[420096456,1775669477026,-102143.63951787,0.00015999,3]
[420096457,1775669477041,-666.0,0.00015999,2]
[420096458,1775669477057,-666.0,0.00015999,2]
[420096459,1775669477072,-238601.6766861,0.00015999,2]
[420096460,1775669477087,-3000.0,0.00015999,2]
[420096461,1775669477103,-1308328.28590836,0.00016,2]
[420096462,1775669477127,-14875.64541495,0.00016,2]
[420096463,1775669477159,-6767.32040939,0.00016,2]
[420096467,1775669481750,270.0,8.421e-05,2]
[420096468,1775669556813,5235.2349,8.42e-05,2]
[420096469,1775669625914,-300.0,8.514e-05,2]
[420096470,1775669625943,-300.0,8.514e-05,2]
[420096471,1775669625971,-272.0,8.514e-05,2]
[420096472,1775669626248,-1686.5227,8.515e-05,2]
[420096473,1775669626341,-5000.01,8.515e-05,2]
[420096474,1775669626455,-1647.17562412,8.515e-05,2]
[420096475,1775669626485,-170.0,8.516e-05,2]
[420096476,1775669626515,-288.75734877,8.516e-05,2]
[420096477,1775669626545,-209.93481114,8.52e-05,2]
[420096478,1775669626609,-368.27443194,8.52e-05,2]
[420096479,1775669626659,-500.0,8.52e-05,2]
[420096480,1775669626692,-431.0128461,8.52e-05,2]
[420096484,1775669858459,-578.20924308,8.524e-05,2]
[420096485,1775669858486,-421.79075692,8.524e-05,2]
[420096486,1775669858728,-78.20924308,8.524e-05,2]
[420096487,1775669858751,-250.0,8.524e-05,2]
[420096488,1775669858774,-671.79075692,8.524e-05,2]
[420096489,1775669858833,-1000.0,8.524e-05,2]
[420096490,1775669858895,-1000.0,8.524e-05,2]
[420096491,1775669858949,-1000.0,8.524e-05,2]
[420096492,1775669859019,-1000.0,8.524e-05,2]
[420096493,1775669859387,-328.20924308,8.524e-05,2]
[420096494,1775669859409,-272.0,8.524e-05,2]
[420096495,1775669859435,-250.0,8.547e-05,2]
[420096496,1775669859457,-149.79075692,8.575e-05,2]
[420096497,1775669860446,-200.85971444,8.575e-05,2]
[420096498,1775669860469,-500.0,8.579e-05,2]
[420096499,1775669860491,-299.14028556,8.588e-05,2]
[420096500,1775669860884,-1000.0,8.588e-05,2]
[420096501,1775669861319,-1000.0,8.588e-05,2]
[420096502,1775669861743,-1000.0,8.588e-05,2]
[420096503,1775669862114,-1000.0,8.588e-05,2]
[420096504,1775669862429,-700.85971444,8.588e-05,2]
[420096505,1775669862453,-299.14028556,8.588e-05,2]
[420096506,1775669862784,-1000.0,8.588e-05,2]
[420096507,1775669863153,-1000.0,8.588e-05,2]
[420096508,1775669863584,-1000.0,8.588e-05,2]
[420096509,1775669864070,-1000.0,8.588e-05,2]
[420096510,1775669864488,-700.85971444,8.588e-05,2]
[420096511,1775669864512,-299.14028556,8.588e-05,2]
[420096512,1775669864806,-1000.0,8.588e-05,2]
[420096513,1775669865259,-1000.0,8.588e-05,2]
[420096514,1775669865729,-1000.0,8.588e-05,2]
[420096515,1775669866156,-1000.0,8.588e-05,2]
[420096516,1775669866498,-700.85971444,8.588e-05,2]
[420096517,1775669866523,-299.14028556,8.634e-05,2]
[420096518,1775669866836,-200.85971444,8.634e-05,2]
[420096520,1775669933652,-500.0,8.689e-05,2]
[420096521,1775669933679,-274.0,8.689e-05,2]
[420096522,1775669970219,-277.0,8.843e-05,2]
[420096523,1775669970244,-123.0,8.843e-05,2]
[420096527,1775670347146,-514.18703919,8.843e-05,2]
[420096528,1775670347169,-250.0,8.917e-05,2]
[420096529,1775670347190,-200.3541267,8.991e-05,2]
[420096530,1775670347211,-150.0,9e-05,2]
[420096531,1775670347232,-233.7669809,9e-05,2]
[420096532,1775670347252,-1200.0,9.071e-05,2]
[420096533,1775670347273,-233.76698089,9.364e-05,2]
[420096534,1775670347295,-1200.0,9.727e-05,2]
[420096535,1775670347316,-150.0,9.727e-05,2]
[420096536,1775670347337,-300.0,9.727e-05,2]
[420096537,1775670347359,-250.0,9.728e-05,2]
[420096538,1775670347381,-5000.0,9.728e-05,2]
[420096539,1775670347403,-2229.62,9.728e-05,2]
[420096540,1775670347424,-2336.63,9.728e-05,2]
[420096541,1775670347445,-9999.99,9.728e-05,2]
[420096542,1775670347467,-33718.52394066,9.728e-05,2]
[420096543,1775670435140,-2130.38605934,9.728e-05,2]
[420096544,1775670435163,-150.99,9.728e-05,2]
[420096545,1775670435184,-299.99,9.728e-05,2]
[420096546,1775670435207,-250.0,9.728e-05,2]
[420096547,1775670435230,-756.46,9.728e-05,2]
[420096548,1775670435253,-150.99,9.728e-05,2]
[420096549,1775670435275,-2263.77,9.728e-05,2]
[420096550,1775670435298,-654.79,9.728e-05,2]
[420096551,1775670435327,-3367.59256486,9.728e-05,2]
[420096552,1775670435353,-377.0,9.728e-05,2]
[420096553,1775670435377,-233.76698089,9.728e-05,2]
[420096554,1775670435401,-1852.42,9.786e-05,2]
[420096555,1775670435427,-2500.0,9.8e-05,2]
[420096556,1775670435452,-1235.18214925,9.894e-05,2]
[420096557,1775670435476,-623.58710448,9.894e-05,2]
[420096558,1775670435505,-500.0,9.899e-05,2]
[420096559,1775670435533,-500.0,9.899e-05,2]
[420096560,1775670435562,-500.0,9.899e-05,2]
[420096561,1775670435590,-500.0,9.899e-05,2]
[420096562,1775670435619,-500.0,9.899e-05,2]
[420096563,1775670435647,-368.91565588,9.899e-05,2]
[420096564,1775670435676,-500.0,9.899e-05,2]
[420096565,1775670435704,-500.0,9.899e-05,2]
[420096566,1775670435733,-500.0,9.899e-05,2]
[420096567,1775670435761,-500.0,9.899e-05,2]
[420096568,1775670435788,-12821.49108647,9.9e-05,2]
[420096577,1775670631993,-300.0,9.899e-05,2]
[420096578,1775670632007,-1200.0,9.899e-05,2]
[420096579,1775670632021,-250.0,9.9e-05,2]
[420096580,1775670632034,-20217.62055404,9.9e-05,2]
[420096581,1775670632049,-1060.14397087,9.9e-05,2]
[420096582,1775670632065,-687.16138692,9.9e-05,2]
[420096583,1775670632080,-347.43508066,9.9e-05,2]
[420096584,1775670633513,-900.10494811,9.9e-05,2]
[420096585,1775670633562,-1668.97568377,9.9e-05,2]
[420096586,1775670633598,-2560.48508505,9.9e-05,2]
[420096587,1775670633626,-102329.06084779,9.9e-05,2]
[420096588,1775670633638,-16877.55348723,9.9e-05,2]
[420096589,1775670633650,-1405.13503512,9.9e-05,2]
[420096590,1775670633697,-1804.06328209,9.9e-05,2]
[420096595,1775670637979,-40781.04905188,9.9e-05,2]
[420096596,1775670637995,-2500.0,9.9e-05,2]
[420096597,1775670638005,-150.0,0.0001,2]
[420096598,1775670638016,-151.0,0.0001,2]
[420096599,1775670638026,-151.0,0.0001,2]
[420096600,1775670638036,-151.0,0.0001,2]
[420096601,1775670638046,-151.0,0.0001,2]
[420096602,1775670638056,-151.0,0.0001,2]
[420096603,1775670638067,-500.0,0.0001,2]
[420096604,1775670638077,-151.0,0.0001,2]
[420096605,1775670638087,-500.0,0.0001,2]
[420096606,1775670638098,-151.0,0.0001,2]
[420096607,1775670638108,-500.0,0.0001,2]
[420096608,1775670638118,-500.0,0.0001,2]
[420096609,1775670638128,-151.0,0.0001,2]
[420096610,1775670638138,-500.0,0.0001,2]
[420096611,1775670638148,-151.0,0.0001,2]
[420096612,1775670638159,-151.0,0.0001,2]
[420096613,1775670638169,-151.0,0.0001,2]
[420096614,1775670638179,-151.0,0.0001,2]
[420096615,1775670638190,-151.0,0.0001,2]
[420096616,1775670638200,-151.0,0.0001,2]
[420096617,1775670638210,-151.0,0.0001,2]
[420096618,1775670638220,-151.0,0.0001,2]
[420096619,1775670638231,-151.0,0.0001,2]
[420096620,1775670638240,-151.0,0.0001,2]
[420096621,1775670638250,-151.0,0.0001,2]
[420096622,1775670638261,-151.0,0.0001,2]
[420096623,1775670638271,-151.0,0.0001,2]
[420096624,1775670638792,-151.0,0.0001,2]
[420096625,1775670638834,-151.0,0.0001,2]
[420096626,1775670638844,-151.0,0.0001,2]
[420096627,1775670638854,-151.0,0.0001,2]
[420096628,1775670638864,-151.0,0.0001,2]
[420096629,1775670638874,-151.0,0.0001,2]
[420096630,1775670638884,-151.0,0.0001,2]
[420096631,1775670638894,-151.0,0.0001,2]
[420096632,1775670638904,-151.0,0.0001,2]
[420096633,1775670638913,-151.0,0.0001,2]
[420096634,1775670638922,-151.0,0.0001,2]
[420096635,1775670638932,-151.0,0.0001,2]
[420096636,1775670638941,-151.0,0.0001,2]
[420096637,1775670638951,-151.0,0.0001,2]
[420096638,1775670638961,-293.45,0.00010104,2]
[420096639,1775670638970,-187.21520567,0.00010442,2]
[420096640,1775670638981,-250.0,0.00010701,2]
[420096641,1775670638991,-500.0,0.00010889,2]
[420096642,1775670639001,-250.0,0.00010889,2]
[420096643,1775670639011,-687.0,0.00010889,2]
[420096644,1775670639021,-2000.0,0.000109,2]
[420096645,1775670639031,-1500.0,0.00011081,2]
[420096646,1775670639041,-2991.50966616,0.00011099,2]
[420096647,1775670639050,-2991.50966612,0.00011099,2]
[420096648,1775670639060,-2991.50966612,0.00011216,2]
[420096649,1775670639070,-172.0849,0.000113,2]
[420096650,1775670639080,-500.0,0.00011476,2]
[420096651,1775670639090,-2991.50966612,0.00011885,2]
[420096652,1775670639100,-294.97396364,0.00011925,2]
[420096653,1775670639110,-2000.0,0.00012262,2]
[420096654,1775670639120,-150.0,0.00012282,2]
[420096655,1775670639129,-2133.42,0.00012477,2]
[420096656,1775670639139,-2991.50966612,0.00012554,2]
[420096657,1775670639149,-157.1,0.0001259,2]
[420096658,1775670639159,-646.65982734,0.00012633,2]
[420096659,1775670639169,-197.4215,0.000127,2]
[420096660,1775670639179,-160.0,0.00012912,2]
[420096661,1775670639189,-4511.57,0.0001293,2]
[420096662,1775670639198,-250.0,0.00013,2]
[420096663,1775670639208,-501.0,0.000131,2]
[420096664,1775670639218,-14458.22882836,0.00013222,2]
[420096671,1775670641791,-3002.05627555,0.00013222,2]
[420096674,1775670642184,-0.31776763,0.00013222,2]
[420096675,1775670642202,-9077.466239,0.00013222,2]
[420096676,1775670642212,-2991.50966612,0.00013224,2]
[420096677,1775670642222,-2000.0,0.00013625,2]
[420096678,1775670642232,-166.66,0.00013699,2]
[420096679,1775670642242,-200.0,0.00013699,2]
[420096680,1775670642258,-166.66,0.00013836,2]
[420096681,1775670642268,-631.205,0.00013861,2]
[420096682,1775670642279,-1046.0,0.00013861,2]
[420096683,1775670642289,-3636.382,0.00013861,2]
[420096684,1775670642299,-1363.382,0.00013861,2]
[420096685,1775670642309,-150.0,0.00013861,2]
[420096686,1775670642320,-1264.0,0.00013861,2]
[420096687,1775670642330,-1217.0,0.00013861,2]
[420096688,1775670642340,-926.0,0.00013861,2]
[420096689,1775670642351,-2471.0,0.00013861,2]
[420096690,1775670642361,-6022.0,0.00013861,2]
[420096691,1775670642371,-3772.0,0.00013861,2]
[420096692,1775670642382,-2991.50966612,0.00013893,2]
[420096693,1775670642392,-166.66,0.00013973,2]
[420096694,1775670642403,-1348.0,0.00014,2]
[420096695,1775670642413,-226.4885,0.000141,2]
[420096696,1775670642425,-166.66,0.0001411,2]
[420096697,1775670642435,-293.45,0.00014146,2]
[420096698,1775670642446,-501.0,0.00014234,2]
[420096699,1775670642456,-166.66,0.00014247,2]
[420096700,1775670642467,-166.66,0.00014384,2]
[420096701,1775670642477,-2991.50966612,0.00014562,2]
[420096702,1775670642487,-5110.52,0.00014608,2]
[420096703,1775670642497,-257.261,0.00014608,2]
[420096704,1775670642507,-168.0,0.00014912,2]
[420096705,1775670642517,-500.0,0.00014927,2]
[420096706,1775670642528,-500.0,0.00014927,2]
[420096707,1775670642538,-197.51949262,0.00014927,2]
[420096708,1775670642548,-531.0943547,0.00014927,2]
[420096709,1775670642558,-500.0,0.00014927,2]
[420096710,1775670642569,-500.0,0.00014927,2]
[420096711,1775670642579,-632.7969583,0.00014927,2]
[420096712,1775670642590,-500.0,0.00014927,2]
[420096713,1775670642600,-500.0,0.00014927,2]
[420096714,1775670642611,-500.0,0.00014927,2]
[420096715,1775670642621,-411.09345729,0.00014927,2]
[420096716,1775670642632,-490.02165499,0.00014927,2]
[420096717,1775670642643,-26116.6607,0.00014928,2]
[420096718,1775670642654,-5000.0,0.00014928,2]
[420096720,1775670642665,-505.10097509,0.00014933,2]
[420096721,1775670642676,-168.0,0.00014952,2]
[420096723,1775670642686,-3260.57816714,0.00014973,2]
[420096726,1775670642697,-2000.0,0.00014987,2]
[420096728,1775670642707,-300.0,0.00015,2]
[420096730,1775670642717,-168.0,0.00015005,2]
[420096732,1775670642727,-221.60704552,0.00015018,2]
[420096733,1775670642737,-151.0,0.00015025,2]
[420096734,1775670642747,-151.0,0.00015025,2]
[420096735,1775670642762,-549.0,0.00015028,5]
[420096736,1775670642773,-641.0,0.00015028,5]
[420096737,1775670642784,-49772.26157723,0.00015028,2]
[420096738,1775670642810,-95408.17846005,0.00015028,2]
[420096739,1775670642872,-342.26322073,0.00015028,2]
[420096740,1775670642885,-450.9,0.00015028,2]
[420096749,1775670643092,-2017.67211307,0.00015028,2]
[420096750,1775670643106,-2505.30683855,0.00015028,2]
[420096751,1775670643121,-486.68206424,0.00015028,2]
[420096752,1775670643390,-114913.25844575,0.00015028,2]
[420096753,1775670643404,-15625.22870211,0.00015028,2]
[420096754,1775670643811,-11567.09808121,0.00015028,2]
[420096755,1775670643863,-1741.45620294,0.00015028,2]
[420096756,1775670643877,-1205169.69429412,0.00015028,2]
[420096757,1775670643889,-500.0,0.00015073,2]
[420096758,1775670643901,-505.10097508,0.00015094,2]
[420096759,1775670643912,-3260.57816709,0.00015158,2]
[420096760,1775670643924,-168.0,0.00015213,2]
[420096761,1775670643936,-2991.50966612,0.00015231,2]
[420096762,1775670643947,-505.10097508,0.00015255,2]
[420096763,1775670643958,-160.0,0.0001526,2]
[420096764,1775670643970,-521.842707,0.0001526,2]
[420096765,1775670643981,-883.685414,0.0001526,2]
[420096766,1775670643992,-1381.46684249,0.0001532,2]
[420096767,1775670644002,-3260.57816709,0.00015344,2]
[420096768,1775670644013,-637.52174571,0.00015372,2]
[420096769,1775670644025,-505.10097508,0.00015417,2]
[420096770,1775670644035,-259.8351,0.000155,2]
[420096771,1775670644046,-4000.0,0.00015507,2]
[420096772,1775670644057,-168.0,0.00015516,2]
[420096773,1775670644067,-350.0,0.00015525,2]
[420096774,1775670644078,-3260.57816709,0.00015529,2]
[420096775,1775670644088,-505.10097508,0.00015578,2]
[420096776,1775670644099,-256.091902,0.00015582,7]
[420096777,1775670644110,-1000.0,0.000156,2]
[420096778,1775670644121,-161.19100432,0.00015621,2]
[420096779,1775670644132,-350.0,0.00015692,2]
[420096780,1775670644143,-3260.57816709,0.00015715,2]
[420096781,1775670644153,-505.10097508,0.00015739,2]
[420096782,1775670644164,-350.0,0.00015762,4]
[420096783,1775670644175,-254.405063,0.00015767,2]
[420096784,1775670644187,-293.0,0.00015803,2]
[420096785,1775670644197,-97438.76421008,0.0001584,2]
[420096786,1775670644207,-2000.0,0.0001584,2]
[420096787,1775670644218,-2000.0,0.0001584,2]
[420096788,1775670644229,-2000.0,0.0001585,2]
[420096789,1775670644240,-293.0,0.00015865,2]
[420096790,1775670644251,-500.0,0.00015872,2]
[420096791,1775670644263,-500.0,0.00015872,2]
[420096792,1775670644274,-200.0,0.00015872,2]
[420096793,1775670644285,-163.8002,0.0001588,2]
[420096794,1775670644296,-402.13551218,0.00015888,2]
[420096795,1775670644307,-500.0,0.0001589,2]
[420096796,1775670644317,-500.0,0.0001589,2]
[420096797,1775670644327,-500.0,0.0001589,2]
[420096798,1775670644338,-194.91667222,0.0001589,2]
[420096799,1775670644348,-25000.0,0.00015891,3]
[420096800,1775670644359,-4000.0,0.00015895,2]
[420096801,1775670644370,-1000.0,0.000159,2]
[420096802,1775670644381,-9126.7707,0.000159,2]
[420096803,1775670644392,-25000.0,0.000159,3]
[420096804,1775670644403,-25000.0,0.000159,3]
[420096805,1775670644413,-505.10097508,0.000159,2]
[420096806,1775670644424,-2991.50966612,0.000159,2]
[420096807,1775670644434,-184.01842302,0.000159,2]
[420096808,1775670644445,-152.16222249,0.000159,2]
[420096809,1775670644456,-1622.92709691,0.000159,2]
[420096810,1775670644467,-8403.39878336,0.000159,2]
[420096811,1775670644477,-3260.57816709,0.000159,2]
[420096812,1775670644488,-2000.0,0.000159,2]
[420096813,1775670644499,-152.0,0.00015903,2]
[420096814,1775670644509,-1527.0,0.00015903,2]
[420096815,1775670644520,-152.0,0.00015903,2]
[420096816,1775670644530,-1527.0,0.00015903,2]
[420096817,1775670644541,-152.0,0.00015903,2]
[420096818,1775670644551,-152.0,0.00015903,2]
[420096819,1775670644562,-152.0,0.00015903,2]
[420096820,1775670644577,-160.84448172,0.00015903,2]
[420096821,1775670644588,-250.0,0.00015912,2]
[420096822,1775670644600,-350.0,0.0001592,2]
[420096823,1775670644610,-392.0,0.00015933,2]
[420096824,1775670644621,-500.0,0.00015973,2]
[420096825,1775670644632,-500.0,0.00015973,2]
[420096826,1775670644643,-500.0,0.00015973,2]
[420096827,1775670644653,-500.0,0.00015973,2]
[420096828,1775670644664,-389.0016983,0.00015973,2]
[420096829,1775670644674,-500.0,0.00015973,2]
[420096830,1775670644685,-500.0,0.00015973,2]
[420096831,1775670644695,-500.0,0.00015973,2]
[420096832,1775670644705,-500.0,0.00015973,2]
[420096833,1775670644715,-199.91413168,0.00015984,2]
[420096834,1775670644726,-239.00150115,0.00015984,2]
[420096835,1775670644736,-350.0,0.00015985,3]
[420096836,1775670644746,-221.60704552,0.0001599,2]
[420096837,1775670644756,-151.0,0.00015997,2]
[420096838,1775670644766,-200.63062,0.00015997,2]
[420096839,1775670644776,-666.0,0.00015999,2]
[420096840,1775670644786,-178.411,0.00015999,2]
[420096841,1775670644797,-214.165588,0.00015999,2]
[420096842,1775670644807,-1523072.27608295,0.00016,2]
[420096844,1775670646298,-169337.53994583,0.00016,2]
[420096845,1775670646308,-150.0,0.00016,2]
[420096846,1775670646317,-1473.73853004,0.00016,2]
[420096847,1775670646327,-220231.80204525,0.00016,2]
[420096848,1775670646339,-36717.83894664,0.00016,2]
[420096849,1775670646358,-450.0,0.00016,2]
[420096850,1775670646403,-1436.6590742,0.00016,2]
[420096851,1775670646415,-1116.15,0.00016,2]
[420096854,1775670650498,2091.35,5.052e-05,2]
[420096855,1775670650915,2091.35,5.318e-05,2]
[420096856,1775670651134,2091.35,5.584e-05,2]
[420096857,1775670651328,2091.35,5.85e-05,2]
[420096858,1775670651536,1634.61,6.116e-05,2]
[420096859,1775670651559,456.74,6.116e-05,2]
[420096860,1775670651737,2091.35,6.382e-05,2]
[420096861,1775670651943,2091.35,6.648e-05,2]
[420096862,1775670652157,2091.35,6.914e-05,2]
[420096863,1775670652380,2091.35,7.18e-05,2]
[420096864,1775670652587,1177.87,7.445e-05,2]
[420096865,1775670652611,913.48,7.445e-05,2]
[420096866,1775670652790,2091.35,7.711e-05,2]
[420096867,1775670652999,2091.35,7.977e-05,2]
[420096868,1775670653216,2091.35,8.243e-05,2]
[420096869,1775670653421,2091.35,8.509e-05,2]
[420096872,1775671028302,175.0,7.945e-05,2]
[420096873,1775671028337,20470.803438,7.945e-05,2]
[420096878,1775671659383,1605.1445498,8e-05,2]
[420096879,1775671794815,394.15138645,7.888e-05,2]
[420096884,1775671830846,294.0,0.000105,30]
[420096886,1775671832355,-753.6781311,8.775e-05,2]